bitfinex-derivatives/quotes_BNBF0:USTF0_20250511
["timestamp","ask_amount","ask_price","bid_price","bid_amount"]
[1746981946822,0.3072055,651.03,649.39,0.30798133]
[1746981948726,0.26738173,651.02,649.39,0.30798133]
[1746981948926,0.30721966,651.0,649.39,0.30798133]
[1746981951629,0.26738482,650.99,649.39,0.30798133]
[1746981951829,0.30723382,650.97,649.39,0.30798133]
[1746981958735,0.26741666,650.96,649.39,0.30798133]
[1746981958931,0.30724797,650.94,649.39,0.30798133]
[1746981960535,0.2674105,650.93,649.39,0.30798133]
[1746981960731,0.30726214,650.91,649.39,0.30798133]
[1746981963433,0.26741769,650.9,649.39,0.30798133]
[1746981963636,0.3072763,650.88,649.39,0.30798133]
[1746981964835,0.3072763,650.88,649.35,0.26741769]
[1746981969138,0.3072763,650.88,648.94,0.97355629]
[1746981969339,0.3072763,650.88,648.95,0.30819015]
[1746981969539,0.26746702,650.87,649.31,0.26746702]
[1746981969741,0.30729046,650.85,648.95,0.30819015]
[1746981970536,0.30729046,650.85,648.96,0.26747113]
[1746981970740,0.30729046,650.85,648.97,0.30818065]
[1746981975446,1.96816986,650.82,648.97,0.30818065]
[1746981977244,0.30731407,650.8,648.97,0.30818065]
[1746981978445,0.26752665,650.79,648.97,0.30818065]
[1746981978647,0.30732824,650.77,648.97,0.30818065]
[1746981981647,0.30732824,650.77,648.82,0.26757499]
[1746981982246,0.26762643,650.76,648.82,0.26757499]
[1746981984151,0.30732824,650.77,647.99,0.97355629]
[1746981984349,0.30732824,650.77,648.11,0.30858959]
[1746981984548,0.2676676,650.75,648.82,0.2676676]
[1746981984749,0.2676676,650.75,648.11,0.30858959]
[1746981985650,0.2676676,650.75,648.12,0.26766657]
[1746981985949,0.2676676,650.75,648.22,0.30853722]
[1746981987052,0.30732824,650.77,648.22,0.30853722]
[1746981987552,0.26764393,650.76,648.22,0.30853722]
[1746981988953,0.30738964,650.64,648.22,0.30853722]
[1746981994357,0.26760997,650.63,648.22,0.30853722]
[1746981994558,0.26760997,650.63,648.31,0.97355629]
[1746981996161,0.30738964,650.64,648.31,0.97355629]
[1746981997164,0.30738964,650.64,648.26,0.97355629]
[1746981997355,0.2675935,650.63,648.26,0.97355629]
[1746982000065,0.2675935,650.63,648.4,0.97355629]
[1746982001870,0.2675935,650.63,648.23,1.24114979]
[1746982002168,0.30738964,650.64,648.23,1.24114979]
[1746982002169,0.30738964,650.64,648.23,0.97355629]
[1746982003365,0.30738964,650.64,648.23,1.24110659]
[1746982003669,0.2675503,650.63,648.23,1.24110659]
[1746982004973,0.2675503,650.63,648.23,0.2675503]
[1746982005171,0.30738964,650.64,648.22,0.30853722]
[1746982006477,0.26756161,650.63,648.23,0.26756161]
[1746982007572,0.26756161,650.63,648.27,0.97355629]
[1746982008179,0.30738964,650.64,648.27,0.97355629]
[1746982009382,0.26752768,650.63,648.27,0.97355629]
[1746982010278,0.26752768,650.63,648.57,0.97355629]
[1746982011083,0.30738964,650.64,648.57,0.97355629]
[1746982011378,0.26756059,650.62,648.57,0.97355629]
[1746982012083,0.26756059,650.62,648.59,0.30836121]
[1746982012383,0.30740854,650.6,648.59,0.30836121]
[1746982012779,0.30740854,650.6,648.71,0.97355629]
[1746982012981,0.30740854,650.6,648.73,0.30829466]
[1746982014588,0.26751739,650.59,648.73,0.30829466]
[1746982014784,0.30742272,650.57,648.73,0.30829466]
[1746982020691,0.26751225,650.56,648.73,0.30829466]
[1746982021692,0.30743217,650.55,648.73,0.30829466]
[1746982023593,0.26753385,650.54,648.73,0.30829466]
[1746982026090,0.30743217,650.55,648.73,0.30829466]
[1746982026389,0.2675863,650.53,648.73,0.30829466]
[1746982027393,0.30745107,650.51,648.73,0.30829466]
[1746982035397,0.26755236,650.5,648.73,0.30829466]
[1746982035598,0.30746052,650.49,648.73,0.30829466]
[1746982037001,0.30746052,650.49,648.74,0.97355629]
[1746982037299,0.30746052,650.49,648.76,0.30828041]
[1746982038694,0.30746052,650.49,648.77,0.97355629]
[1746982038999,0.30746052,650.49,648.79,0.30826615]
[1746982043801,0.30746052,650.49,648.81,0.97355629]
[1746982044303,0.30746052,650.49,648.83,0.30824715]
[1746982046308,0.30746052,650.49,649.04,0.97355629]
[1746982046510,0.30746052,650.49,649.05,0.30814267]
[1746982054406,0.26749272,650.48,649.05,0.30814267]
[1746982055012,0.26749272,650.48,648.95,0.26749272]
[1746982055213,0.26749272,650.48,648.79,0.97355629]
[1746982055715,0.26749272,650.48,648.8,0.2676254]
[1746982056215,0.30746052,650.49,648.79,0.97355629]
[1746982056414,0.30746052,650.49,648.4,0.97355629]
[1746982056709,0.30746052,650.49,648.41,0.30844681]
[1746982057316,0.26763055,650.48,648.41,0.30844681]
[1746982057616,0.26763055,650.48,648.42,0.26763158]
[1746982059217,0.30746052,650.49,648.41,0.30844681]
[1746982060315,0.26772114,650.48,648.42,0.26772114]
[1746982065222,0.30746052,650.49,648.41,0.30844681]
[1746982066420,0.26772835,650.48,648.42,0.26772835]
[1746982068221,0.30746052,650.49,648.41,0.30844681]
[1746982068421,0.26770775,650.47,648.42,0.26770775]
[1746982071424,0.30746052,650.49,648.42,0.26771084]
[1746982072523,0.26763569,650.48,648.42,0.26771084]
[1746982074120,0.30746052,650.49,648.41,0.30844681]
[1746982075520,0.26773865,650.48,648.42,0.26773865]
[1746982077219,0.26773865,650.48,648.41,0.30844681]
[1746982077220,0.30746052,650.49,648.41,0.30844681]
[1746982078430,0.26775719,650.48,648.42,0.26775719]
[1746982080231,0.30746052,650.49,648.41,0.30844681]
[1746982081427,0.267785,650.48,648.42,0.267785]
[1746982083131,0.30746052,650.49,648.41,0.30844681]
[1746982083430,0.26771187,650.47,648.42,0.26771187]
[1746982086131,0.30746052,650.49,648.41,0.30844681]
[1746982086531,0.2676851,650.46,648.42,0.2676851]
[1746982089233,0.30746052,650.49,648.41,0.30844681]
[1746982089635,0.26766348,650.45,648.42,0.26766348]
[1746982092141,1.96816986,650.46,648.41,0.30844681]
[1746982092334,0.30748416,650.44,648.41,0.30844681]
[1746982092634,0.30748416,650.44,648.42,0.26767892]
[1746982093038,0.30748416,650.44,648.43,0.3084373]
[1746982094436,1.96816986,650.42,648.43,0.3084373]
[1746982095543,0.26766245,650.41,648.43,0.3084373]
[1746982096945,1.96816986,650.37,648.43,0.3084373]
[1746982098845,0.30748416,650.44,648.43,0.3084373]
[1746982099444,0.26765422,650.43,648.43,0.3084373]
[1746982102747,1.96816986,650.4,648.43,0.3084373]
[1746982104447,0.26769951,650.39,648.43,0.3084373]
[1746982107147,2.27565402,650.44,648.43,0.3084373]
[1746982107450,0.26768304,650.38,648.43,0.3084373]
[1746982108647,0.30752198,650.36,648.43,0.3084373]
[1746982110450,0.26768922,650.35,648.43,0.3084373]
[1746982110651,0.30753617,650.33,648.43,0.3084373]
[1746982119663,0.26766245,650.32,648.43,0.3084373]
[1746982120165,0.26766245,650.32,648.48,0.97355629]
[1746982120462,0.26766245,650.32,648.5,0.308404]
[1746982120760,0.30754563,650.31,648.5,0.308404]
[1746982123563,0.26762026,650.3,648.5,0.308404]
[1746982124764,0.30755509,650.29,648.5,0.308404]
[1746982133070,0.30126557,650.29,648.5,0.308404]
[1746982137574,0.26766451,650.28,648.5,0.308404]
[1746982137874,0.30756455,650.27,648.5,0.308404]
[1746982141471,0.26759453,650.26,648.5,0.308404]
[1746982141675,0.307574,650.25,648.5,0.308404]
[1746982141977,0.307574,650.25,648.53,0.97355629]
[1746982142169,0.307574,650.25,648.55,0.30838023]
[1746982143578,0.26766657,650.24,648.55,0.30838023]
[1746982149283,0.307574,650.25,648.55,0.30838023]
[1746982149481,0.26772423,650.23,648.55,0.30838023]
[1746982155280,0.307574,650.25,648.55,0.30838023]
[1746982155479,0.26774483,650.22,648.55,0.30838023]
[1746982157683,0.26774483,650.22,648.49,0.26774483]
[1746982157878,0.26774483,650.22,647.68,0.97355629]
[1746982158078,0.26774483,650.22,648.35,0.26777676]
[1746982158281,0.307574,650.25,647.68,0.97355629]
[1746982158483,0.307574,650.25,647.7,0.30878493]
[1746982159383,0.26781076,650.24,647.71,0.26781076]
[1746982161285,0.307574,650.25,647.7,0.30878493]
[1746982162486,0.26784065,650.24,647.71,0.26784065]
[1746982167285,0.307574,650.25,647.7,0.30878493]
[1746982167489,0.26784065,650.23,647.71,0.26784065]
[1746982170293,0.307574,650.25,647.7,0.30878493]
[1746982171493,0.26782519,650.24,647.71,0.26782519]
[1746982173098,0.28268779,650.23,647.71,0.26782519]
[1746982173293,0.28268779,650.23,647.7,0.30878493]
[1746982173491,0.55055112,650.23,647.7,0.30878493]
[1746982173696,0.28268779,650.22,647.7,0.30878493]
[1746982174596,0.28268779,650.22,647.71,0.26787467]
[1746982176298,0.28268779,650.22,647.7,0.30878493]
[1746982176499,0.26785302,650.21,647.86,0.97355629]
[1746982178901,0.26785302,650.21,647.88,0.30869914]
[1746982179102,0.30764497,650.1,647.88,0.30869914]
[1746982179502,0.30764497,650.1,647.96,0.97355629]
[1746982180201,0.30764497,650.1,647.98,0.3086515]
[1746982182003,0.30764497,650.1,648.03,0.97355629]
[1746982182502,0.26782107,650.09,648.03,0.97355629]
[1746982184103,0.26782107,650.09,648.06,0.97355629]
[1746982184401,0.26782107,650.09,648.07,0.30860863]
[1746982185298,0.30764497,650.1,648.07,0.30860863]
[1746982185502,0.30765917,650.07,648.07,0.30860863]
[1746982187204,1.96816986,650.03,648.07,0.30860863]
[1746982187401,0.30768757,650.01,648.07,0.30860863]
[1746982188102,0.30768757,650.01,648.07,0.30248949]
[1746982189799,1.96816986,649.95,648.07,0.30248949]
[1746982190303,0.30772544,649.93,648.07,0.30248949]
[1746982191604,0.26783344,649.92,648.07,0.30248949]
[1746982191800,0.30773965,649.9,648.07,0.30248949]
[1746982194801,0.26783447,649.89,648.07,0.30248949]
[1746982195003,0.30774912,649.88,648.07,0.30248949]
[1746982197709,0.26784683,649.87,648.07,0.30248949]
[1746982197909,0.30776332,649.85,648.07,0.30248949]
[1746982198306,0.30776332,649.85,648.09,0.97355629]
[1746982198609,0.30776332,649.85,648.1,0.30859435]
[1746982201512,0.2678221,649.84,648.1,0.30859435]
[1746982201812,0.30777753,649.82,648.1,0.30859435]
[1746982203515,0.26785817,649.81,648.1,0.30859435]
[1746982206217,0.30777753,649.82,648.1,0.30859435]
[1746982212521,0.2678592,649.81,648.1,0.30859435]
[1746982218226,0.30777753,649.82,648.1,0.30859435]
[1746982218725,0.26785714,649.8,648.1,0.30859435]
[1746982221224,0.30777753,649.82,648.1,0.30859435]
[1746982227529,0.26782416,649.81,648.1,0.30859435]
[1746982230231,0.30777753,649.82,648.1,0.30859435]
[1746982230434,0.2678324,649.8,648.1,0.30859435]
[1746982230831,0.30779174,649.79,648.1,0.30859435]
[1746982231838,0.30779174,649.79,648.14,0.97355629]
[1746982232033,0.30779174,649.79,648.15,0.30857054]
[1746982236744,0.57562621,649.79,648.15,0.30857054]
[1746982239346,0.30779174,649.79,648.15,0.30857054]
[1746982240646,0.26780767,649.78,648.15,0.30857054]
[1746982245249,0.30779174,649.79,648.15,0.30857054]
[1746982245751,0.26787982,649.77,648.15,0.30857054]
[1746982248251,0.30779174,649.79,648.15,0.30857054]
[1746982248546,0.26788395,649.76,648.15,0.30857054]
[1746982251255,0.30779174,649.79,648.15,0.30857054]
[1746982251550,0.26789013,649.75,648.15,0.30857054]
[1746982254255,0.30779174,649.79,648.15,0.30857054]
[1746982254559,0.26790045,649.74,648.15,0.30857054]
[1746982257260,0.30779174,649.79,648.15,0.30857054]
[1746982257654,0.26790045,649.73,648.15,0.30857054]
[1746982260263,0.30779174,649.79,648.15,0.30857054]
[1746982261560,0.26791488,649.78,648.15,0.30857054]
[1746982263260,0.30779174,649.79,648.15,0.30857054]
[1746982263565,0.26788189,649.77,648.15,0.30857054]
[1746982266262,0.30779174,649.79,648.15,0.30857054]
[1746982266769,0.2678922,649.76,648.15,0.30857054]
[1746982269265,0.30779174,649.79,648.15,0.30857054]
[1746982269570,0.26788189,649.75,648.15,0.30857054]
[1746982272173,0.30779174,649.79,648.15,0.30857054]
[1746982272576,0.26785714,649.78,648.15,0.30857054]
[1746982275378,0.30779174,649.79,648.15,0.30857054]
[1746982275678,0.26785302,649.77,648.15,0.30857054]
[1746982278279,0.30779174,649.79,648.15,0.30857054]
[1746982278678,0.26782313,649.78,648.15,0.30857054]
[1746982279378,0.30780595,649.76,648.15,0.30857054]
[1746982281679,0.26784065,649.75,648.15,0.30857054]
[1746982281880,0.30782017,649.73,648.15,0.30857054]
[1746982287586,0.26792107,649.72,648.15,0.30857054]
[1746982288290,0.26792107,649.72,647.73,0.97355629]
[1746982288486,0.26792107,649.72,647.73,1.28232691]
[1746982288687,0.26792107,649.72,647.74,0.26798813]
[1746982290288,0.30782017,649.73,647.73,0.30877062]
[1746982291590,0.26800051,649.72,647.74,0.26800051]
[1746982296290,0.30782017,649.73,647.73,0.30877062]
[1746982296796,0.26790973,649.71,647.74,0.26790973]
[1746982299292,0.30782017,649.73,647.73,0.30877062]
[1746982299697,0.30782017,649.73,647.74,0.26789013]
[1746982300299,0.30782017,649.73,647.76,0.97355629]
[1746982300696,0.26784993,649.72,647.76,0.97355629]
[1746982302199,0.26784993,649.72,647.78,0.97355629]
[1746982302399,0.30782017,649.73,647.78,0.97355629]
[1746982302699,0.26790045,649.71,647.8,0.30873726]
[1746982304201,0.30783438,649.7,647.8,0.30873726]
[1746982305705,0.26790251,649.69,647.8,0.30873726]
[1746982305899,0.30784386,649.68,647.8,0.30873726]
[1746982308502,0.26792004,649.67,647.8,0.30873726]
[1746982309102,0.30785333,649.66,647.8,0.30873726]
[1746982311608,0.26792829,649.65,647.8,0.30873726]
[1746982311809,0.30786281,649.64,647.8,0.30873726]
[1746982314614,0.26793035,649.63,647.8,0.30873726]
[1746982315108,0.30787229,649.62,647.8,0.30873726]
[1746982316014,0.30787229,649.62,647.8,1.28229355]
[1746982318314,0.30787229,649.62,647.8,0.30873726]
[1746982318614,0.26796336,649.61,647.8,0.30873726]
[1746982320315,0.30787229,649.62,647.8,0.30873726]
[1746982320616,0.26795614,649.6,647.8,0.30873726]
[1746982321410,0.30789125,649.58,647.8,0.30873726]
[1746982324521,0.26795202,649.57,647.8,0.30873726]
[1746982325022,0.30790073,649.56,647.8,0.30873726]
[1746982327128,0.26794995,649.55,647.8,0.30873726]
[1746982327425,0.30791021,649.54,647.8,0.30873726]
[1746982332625,0.30791021,649.54,647.8,1.28229355]
[1746982333729,0.26794479,649.53,647.8,1.28229355]
[1746982335126,0.26794479,649.53,647.91,0.97355629]
[1746982335429,0.30791021,649.54,647.91,0.97355629]
[1746982336326,0.26795614,649.53,647.91,0.97355629]
[1746982337227,0.26795614,649.53,647.84,0.26795614]
[1746982338331,0.30791021,649.54,647.8,0.30873726]
[1746982338928,0.30791021,649.54,647.81,0.26795202]
[1746982339133,0.26795202,649.53,647.81,0.26795202]
[1746982341338,0.30791021,649.54,647.8,0.30873726]
[1746982341637,0.26794686,649.52,647.81,0.26794686]
[1746982342437,0.26794686,649.52,647.83,0.97355629]
[1746982344534,0.26794686,649.52,647.81,0.26794686]
[1746982347341,0.30791021,649.54,647.8,0.30873726]
[1746982347543,0.30791021,649.54,647.81,0.26800876]
[1746982348640,0.26802528,649.53,647.81,0.26800876]
[1746982350344,0.30791021,649.54,647.8,0.30873726]
[1746982351639,0.2680098,649.53,647.81,0.2680098]
[1746982356349,0.30791021,649.54,647.8,0.30873726]
[1746982357449,0.30791021,649.54,647.81,0.26793138]
[1746982359351,0.30791021,649.54,647.8,0.30873726]
[1746982360551,0.30791021,649.54,647.81,0.26793757]
[1746982365349,0.30791021,649.54,647.8,0.30873726]
[1746982366055,0.30791021,649.54,647.85,0.97355629]
[1746982368757,0.30791021,649.54,647.86,0.97355629]
[1746982372355,0.30791021,649.54,647.83,0.26791901]
[1746982374362,0.30791021,649.54,647.8,1.28229355]
[1746982374661,0.30791021,649.54,647.83,0.26787673]
[1746982376662,0.26787879,649.81,647.83,0.26787673]
[1746982377263,0.66244106,651.69,647.38,0.97355629]
[1746982377562,0.26768819,649.88,647.83,0.26768819]
[1746982377763,0.2826087,651.68,647.38,0.97355629]
[1746982377965,0.2826087,651.68,647.39,2.06213148]
[1746982378161,0.94504976,651.67,647.4,0.56324048]
[1746982378358,0.94504976,651.67,647.41,1.75452921]
[1746982378664,1.21273795,651.66,647.42,0.56324048]
[1746982378859,1.21273795,651.66,647.43,0.56324048]
[1746982379066,1.96816986,651.0,647.68,0.97355629]
[1746982379364,1.96816986,651.0,647.69,0.56324048]
[1746982379559,0.2826087,650.99,647.7,0.56324048]
[1746982379762,0.2826087,650.99,647.71,0.56324048]
[1746982379959,0.2826087,650.99,647.72,0.56324048]
[1746982380160,0.2826087,650.99,647.73,0.87067704]
[1746982380361,0.2826087,650.99,647.74,0.56324048]
[1746982380562,0.2826087,650.99,647.75,0.56324048]
[1746982380861,0.2826087,650.99,647.76,1.75452921]
[1746982381065,0.2826087,650.99,647.77,0.56324048]
[1746982381269,0.2826087,650.99,647.78,1.75452921]
[1746982381466,0.2826087,650.99,647.79,0.56324048]
[1746982381766,0.2826087,650.99,647.8,0.56324048]
[1746982382067,0.2826087,650.99,647.81,1.75452921]
[1746982382268,0.2826087,650.99,648.07,0.97355629]
[1746982382469,0.2826087,651.13,648.07,0.97355629]
[1746982383367,0.94480325,651.13,648.07,0.97355629]
[1746982383663,0.26762437,651.12,648.07,0.97355629]
[1746982383967,0.2826087,651.11,648.07,0.97355629]
[1746982384468,0.2826087,651.11,648.22,0.30853722]
[1746982384666,0.30723854,650.96,648.22,0.30853722]
[1746982384866,0.2826087,650.95,648.22,0.30853722]
[1746982385468,0.30723854,650.96,648.22,0.30853722]
[1746982385767,0.28251727,650.95,648.22,0.30853722]
[1746982386667,0.26767892,650.94,648.22,0.30853722]
[1746982389368,0.30723854,650.96,648.22,0.30853722]
[1746982389570,0.28250253,650.95,648.22,0.30853722]
[1746982389770,0.26767481,650.93,648.22,0.30853722]
[1746982392373,0.30723854,650.96,648.22,0.30853722]
[1746982392570,0.26766039,650.92,648.22,0.30853722]
[1746982393771,0.28250488,650.91,648.22,0.30853722]
[1746982395573,0.28250488,650.95,648.22,0.30853722]
[1746982395775,0.26766039,650.9,648.22,0.30853722]
[1746982396175,0.28250488,650.89,648.22,0.30853722]
[1746982396378,0.30732824,650.77,648.22,0.30853722]
[1746982396775,0.28250488,650.76,648.22,0.30853722]
[1746982398376,0.30738964,650.64,648.22,0.30853722]
[1746982398590,0.28250488,650.63,648.22,0.30853722]
[1746982399482,0.30745107,650.51,648.22,0.30853722]
[1746982399982,0.28250488,650.5,648.22,0.30853722]
[1746982400183,0.30746525,650.48,648.22,0.30853722]
[1746982400581,0.28250488,650.47,648.22,0.30853722]
[1746982400777,0.30747943,650.45,648.22,0.30853722]
[1746982402683,0.26779428,650.44,648.22,0.30853722]
[1746982403585,0.28260772,650.43,648.22,0.30853722]
[1746982404284,0.30753617,650.33,648.22,0.30853722]
[1746982407681,0.26774277,650.32,648.22,0.30853722]
[1746982407985,0.30755036,650.3,648.22,0.30853722]
[1746982414693,0.26770878,650.29,648.22,0.30853722]
[1746982416395,0.30755036,650.3,648.22,0.30853722]
[1746982416694,0.26771908,650.28,648.22,0.30853722]
[1746982417294,0.30756455,650.27,648.22,0.30853722]
[1746982422790,0.26772114,650.26,648.22,0.30853722]
[1746982422993,0.307574,650.25,648.22,0.30853722]
[1746982425692,0.2677232,650.24,648.22,0.30853722]
[1746982425992,0.30758347,650.23,648.22,0.30853722]
[1746982426699,0.30758347,650.23,648.23,0.97355629]
[1746982426997,0.30758347,650.23,648.25,0.30852294]
[1746982428899,0.2677026,650.22,648.25,0.30852294]
[1746982429197,0.30759293,650.21,648.25,0.30852294]
[1746982431600,0.26772526,650.2,648.25,0.30852294]
[1746982431901,0.30760239,650.19,648.25,0.30852294]
[1746982434704,0.26773865,650.18,648.25,0.30852294]
[1746982435304,0.30761185,650.17,648.25,0.30852294]
[1746982437806,0.26769951,650.16,648.25,0.30852294]
[1746982438007,0.30762131,650.15,648.25,0.30852294]
[1746982440708,0.26774689,650.14,648.25,0.30852294]
[1746982441008,0.30763078,650.13,648.25,0.30852294]
[1746982443703,0.26775925,650.12,648.25,0.30852294]
[1746982445212,0.26775925,650.12,648.25,1.28207923]
[1746982446312,0.30763078,650.13,648.25,1.28207923]
[1746982447613,0.26773762,650.12,648.25,1.28207923]
[1746982448712,0.26773762,650.12,648.25,0.30852294]
[1746982450008,0.30764024,650.11,648.25,0.30852294]
[1746982455611,0.26776543,650.1,648.25,0.30852294]
[1746982455914,0.30764971,650.09,648.25,0.30852294]
[1746982458718,0.26776749,650.08,648.25,0.30852294]
[1746982459018,0.30765917,650.07,648.25,0.30852294]
[1746982461920,0.26769437,650.06,648.25,0.30852294]
[1746982462220,0.30766864,650.05,648.25,0.30852294]
[1746982465822,0.26771496,650.04,648.25,0.30852294]
[1746982467528,0.30766864,650.05,648.25,0.30852294]
[1746982467922,0.26774998,650.03,648.25,0.30852294]
[1746982470428,0.30766864,650.05,648.25,0.30852294]
[1746982470724,0.26774998,650.02,648.25,0.30852294]
[1746982473430,0.30766864,650.05,648.25,0.30852294]
[1746982473830,0.26774998,650.01,648.25,0.30852294]
[1746982474927,0.30766864,650.05,648.25,0.30852294]
[1746982475931,0.26768716,650.04,648.25,0.30852294]
[1746982476433,0.30766864,650.05,648.25,0.30852294]
[1746982477736,0.26767481,650.04,648.25,0.30852294]
[1746982479434,0.30766864,650.05,648.25,0.30852294]
[1746982480640,0.26768304,650.04,648.25,0.30852294]
[1746982482442,0.30766864,650.05,648.25,0.30852294]
[1746982482742,0.26774792,650.03,648.25,0.30852294]
[1746982485646,0.30766864,650.05,648.25,0.30852294]
[1746982485844,0.26774792,650.02,648.25,0.30852294]
[1746982488446,0.30766864,650.05,648.25,0.30852294]
[1746982488750,0.26774792,650.01,648.25,0.30852294]
[1746982491452,0.30766864,650.05,648.25,0.30852294]
[1746982491751,0.30766864,650.05,648.26,0.97355629]
[1746982491951,0.30766864,650.05,648.28,0.30850866]
[1746982492654,0.26770466,650.04,648.28,0.30850866]
[1746982492953,0.3076781,650.03,648.28,0.30850866]
[1746982495655,0.26773762,650.02,648.28,0.30850866]
[1746982495854,0.30768757,650.01,648.28,0.30850866]
[1746982497854,0.26778294,650.0,648.28,0.30850866]
[1746982498054,0.30769704,649.99,648.28,0.30850866]
[1746982500650,0.26779531,649.98,648.28,0.30850866]
[1746982500851,0.3077065,649.97,648.28,0.30850866]
[1746982503759,0.26780767,649.96,648.28,0.30850866]
[1746982504060,0.30771597,649.95,648.28,0.30850866]
[1746982507667,0.26773144,649.94,648.28,0.30850866]
[1746982507860,0.57545215,649.94,648.28,0.30850866]
[1746982509460,0.30772071,649.94,648.28,0.30850866]
[1746982510666,0.26775925,649.93,648.28,0.30850866]
[1746982512466,0.30772071,649.94,648.28,0.30850866]
[1746982513665,0.26773968,649.93,648.28,0.30850866]
[1746982515467,0.30772071,649.94,648.28,0.30850866]
[1746982516668,0.26774998,649.93,648.28,0.30850866]
[1746982518369,0.30772071,649.94,648.28,0.30850866]
[1746982519869,0.26774792,649.93,648.28,0.30850866]
[1746982521369,0.30772071,649.94,648.28,0.30850866]
[1746982521562,0.26778088,649.92,648.28,0.30850866]
[1746982524471,0.30772071,649.94,648.28,0.30850866]
[1746982524666,0.26777264,649.91,648.28,0.30850866]
[1746982527470,0.30772071,649.94,648.28,0.30850866]
[1746982527671,0.26777264,649.9,648.28,0.30850866]
[1746982529376,0.30772071,649.94,648.28,0.30850866]
[1746982539980,1.96816986,650.81,648.28,0.30850866]
[1746982540179,0.30731879,650.79,648.28,0.30850866]
[1746982540780,1.96816986,650.63,648.28,0.30850866]
[1746982541580,0.30740382,650.61,648.28,0.30850866]
[1746982542976,0.26764187,650.6,648.28,0.30850866]
[1746982545581,0.30740382,650.61,648.28,0.30850866]
[1746982545880,0.26765937,650.59,648.28,0.30850866]
[1746982546776,0.26765937,650.59,648.48,0.97355629]
[1746982550881,0.26765937,650.59,648.28,0.30850866]
[1746982550882,0.26765937,650.59,648.49,0.97355629]
[1746982551081,0.26765937,650.59,648.59,0.30836121]
[1746982551486,0.30740382,650.61,648.59,0.30836121]
[1746982551787,0.26760071,650.58,648.59,0.30836121]
[1746982552283,0.30742272,650.57,648.59,0.30836121]
[1746982555984,0.26760688,650.56,648.59,0.30836121]
[1746982556184,0.30743217,650.55,648.59,0.30836121]
[1746982557786,0.26761511,650.54,648.59,0.30836121]
[1746982559990,0.30744162,650.53,648.59,0.30836121]
[1746982578206,0.30744162,650.53,648.66,0.97355629]
[1746982580202,0.30744162,650.53,648.68,0.30831843]
[1746982586302,0.26755956,650.52,648.68,0.30831843]
[1746982586507,0.3074558,650.5,648.68,0.30831843]
[1746982588707,0.26754721,650.49,648.68,0.30831843]
[1746982588911,0.30746525,650.48,648.68,0.30831843]
[1746982591713,0.26759145,650.47,648.68,0.30831843]
[1746982592010,0.30747471,650.46,648.68,0.30831843]
[1746982593715,0.26762026,650.45,648.68,0.30831843]
[1746982594616,0.30748416,650.44,648.68,0.30831843]
[1746982596715,0.26763569,650.43,648.68,0.30831843]
[1746982597515,0.30749361,650.42,648.68,0.30831843]
[1746982599721,0.26763363,650.41,648.68,0.30831843]
[1746982600220,0.30750307,650.4,648.68,0.30831843]
[1746982605821,0.26763775,650.39,648.68,0.30831843]
[1746982606026,0.30751253,650.38,648.68,0.30831843]
[1746982608720,0.26763981,650.37,648.68,0.30831843]
[1746982609026,0.30752198,650.36,648.68,0.30831843]
[1746982611725,0.26765216,650.35,648.68,0.30831843]
[1746982613932,0.30753144,650.34,648.68,0.30831843]
[1746982614732,0.26765422,650.33,648.68,0.30831843]
[1746982615028,0.3075409,650.32,648.68,0.30831843]
[1746982617935,0.26765628,650.31,648.68,0.30831843]
[1746982618137,0.30755036,650.3,648.68,0.30831843]
[1746982621736,0.2676429,650.29,648.68,0.30831843]
[1746982622140,0.30755982,650.28,648.68,0.30831843]
[1746982627740,0.26760482,650.27,648.68,0.30831843]
[1746982629447,0.30755982,650.28,648.68,0.30831843]
[1746982629745,0.2676254,650.26,648.68,0.30831843]
[1746982632547,0.30755982,650.28,648.68,0.30831843]
[1746982660365,0.26756367,650.47,648.68,0.30831843]
[1746982662567,1.96816986,651.23,648.68,0.30831843]
[1746982663166,0.30716775,651.11,648.68,0.30831843]
[1746982663764,0.26748758,651.1,648.68,0.30831843]
[1746982663961,0.30718191,651.08,648.68,0.30831843]
[1746982665766,0.26747833,651.07,648.7,0.97355629]
[1746982665969,0.26747833,651.07,648.81,0.30825665]
[1746982666171,0.30719606,651.05,648.81,0.30825665]
[1746982668874,0.26750403,651.04,648.81,0.30825665]
[1746982669075,0.30724797,650.94,648.81,0.30825665]
[1746982671784,0.267503,650.93,648.81,0.30825665]
[1746982672077,0.30726214,650.91,648.81,0.30825665]
[1746982674782,0.26750917,650.9,648.81,0.30825665]
[1746982674981,0.3072763,650.88,648.81,0.30825665]
[1746982677779,0.26750403,650.87,648.81,0.30825665]
[1746982678281,0.30729046,650.85,648.81,0.30825665]
[1746982681785,0.26752048,650.84,648.81,0.30825665]
[1746982681986,0.30730463,650.82,648.81,0.30825665]
[1746982686487,1.96816986,650.7,648.86,0.97355629]
[1746982686683,1.96816986,650.7,648.88,0.3082234]
[1746982687187,0.30736602,650.69,648.88,0.3082234]
[1746982688287,1.96816986,650.68,648.88,0.3082234]
[1746982688482,0.30737547,650.67,648.88,0.3082234]
[1746982689889,0.26752356,650.66,648.88,0.3082234]
[1746982690085,0.30738492,650.65,648.88,0.3082234]
[1746982692985,0.26752768,650.64,648.88,0.3082234]
[1746982693188,0.30739437,650.63,648.88,0.3082234]